fUSD/lending_fUSD_20241108
["ID","MTS","AMOUNT","RATE_DAILY","PERIOD"]
[341658329,1731068137051,-150.0,0.00041927,30]
[341658330,1731068137074,-150.0,0.00041942,30]
[341658331,1731068137098,-296.94467808,0.00041951,30]
[341658332,1731068137121,-150.0,0.00041959,30]
[341658333,1731068137145,-1000.0,0.0004199,120]
[341658334,1731068137168,-150.0,0.00041992,30]
[341658335,1731068137197,-296.94467808,0.00041997,30]
[341658336,1731068137224,-50000.0,0.00042,42]
[341658337,1731068137250,-3886.34,0.00042,60]
[341658338,1731068137274,-6000.0,0.00042,120]
[341658339,1731068137298,-250.0,0.00042,30]
[341658340,1731068137323,-150.0,0.00042001,30]
[341658341,1731068137349,-150.0,0.00042008,30]
[341658342,1731068137374,-150.0,0.00042013,30]
[341658343,1731068137398,-296.94467808,0.00042044,30]
[341658344,1731068137423,-150.0,0.00042056,30]
[341658345,1731068137447,-150.0,0.00042056,30]
[341658346,1731068137472,-150.0,0.00042075,120]
[341658347,1731068137499,-1018.89375,0.00042088,30]
[341658348,1731068137530,-296.94467808,0.00042091,30]
[341658349,1731068137558,-620.32307181,0.000421,30]
[341658350,1731068137582,-1000.0,0.00042102,120]
[341658351,1731068137608,-150.0,0.00042104,30]
[341658352,1731068137636,-150.0,0.0004212,30]
[341658353,1731068137663,-296.94467808,0.00042138,30]
[341658354,1731068137690,-150.0,0.00042152,30]
[341658355,1731068137719,-3523.16,0.00042171,30]
[341658356,1731068137744,-3523.16,0.00042171,30]
[341658357,1731068137768,-296.94467808,0.00042184,30]
[341658358,1731068137793,-150.0,0.00042184,30]
[341658359,1731068137820,-150.0,0.00042184,30]
[341658360,1731068137845,-500.0,0.0004219,60]
[341658361,1731068137873,-500.0,0.0004219,60]
[341658362,1731068137899,-150.0,0.00042201,30]
[341658363,1731068137926,-1000.0,0.00042214,120]
[341658364,1731068137954,-150.0,0.00042215,30]
[341658365,1731068137978,-296.94467808,0.00042231,30]
[341658366,1731068138002,-150.0,0.00042249,30]
[341658367,1731068138028,-150.0,0.00042249,30]
[341658368,1731068138054,-296.94467808,0.00042278,30]
[341658369,1731068138078,-1018.89375,0.00042288,30]
[341658370,1731068138102,-150.0,0.00042297,30]
[341658371,1731068138126,-150.0,0.00042313,30]
[341658372,1731068138150,-296.94467808,0.00042325,30]
[341658373,1731068138174,-1000.0,0.00042326,120]
[341658374,1731068138200,-150.0,0.00042331,30]
[341658375,1731068138224,-150.0,0.00042331,30]
[341658376,1731068138248,-150.0,0.00042345,30]
[341658377,1731068138272,-150.0,0.00042356,30]
[341658378,1731068138295,-296.94467808,0.00042372,30]
[341658379,1731068138319,-150.0,0.00042377,30]
[341658380,1731068138342,-150.0,0.00042393,30]
[341658381,1731068138365,-296.94467808,0.00042418,30]
[341658382,1731068138390,-1000.0,0.00042438,120]
[341658383,1731068138413,-150.0,0.00042442,30]
[341658384,1731068138437,-150.0,0.00042442,30]
[341658385,1731068138465,-3523.16,0.00042444,30]
[341658386,1731068138488,-3523.16,0.00042444,30]
[341658387,1731068138537,-296.94467808,0.00042465,30]
[341658388,1731068138561,-150.0,0.00042466,120]
[341658389,1731068138584,-150.0,0.00042466,120]
[341658390,1731068138607,-150.0,0.00042466,120]
[341658391,1731068138630,-215.30167926,0.00042466,120]
[341658392,1731068138653,-150.0,0.00042487,30]
[341658393,1731068138676,-1018.89375,0.00042488,30]
[341658394,1731068138699,-150.0,0.0004249,30]
[341658395,1731068138725,-6000.0,0.000425,120]
[341658396,1731068138752,-150.0,0.00042506,30]
[341658397,1731068138778,-296.94467808,0.00042512,30]
[341658398,1731068138801,-150.0,0.00042527,30]
[341658399,1731068138826,-209.0,0.0004253,30]
[341658400,1731068139036,-150.0,0.00042538,30]
[341658401,1731068139062,-1000.0,0.0004255,120]
[341658402,1731068139086,-296.94467808,0.00042559,30]
[341658403,1731068139110,-150.0,0.0004257,30]
[341658404,1731068139135,-150.0,0.00042586,30]
[341658405,1731068139159,-151.0,0.00042603,120]
[341658406,1731068139186,-296.94467808,0.00042605,30]
[341658407,1731068139212,-2000.0,0.00042625,120]
[341658408,1731068139237,-150.0,0.00042635,30]
[341658409,1731068139261,-150.0,0.00042635,30]
[341658410,1731068139285,-296.94467808,0.00042652,30]
[341658411,1731068139309,-1000.0,0.00042661,120]
[341658412,1731068139333,-150.0,0.00042662,30]
[341658413,1731068139358,-150.0,0.00042683,30]
[341658414,1731068139382,-1018.89375,0.00042688,30]
[341658415,1731068139406,-296.94467808,0.00042699,30]
[341658416,1731068139431,-150.0,0.00042699,30]
[341658417,1731068139455,-150.0,0.00042699,30]
[341658418,1731068139478,-505.0,0.000427,120]
[341658419,1731068139501,-4017.0,0.000427,117]
[341658420,1731068139526,-3523.16,0.00042717,30]
[341658421,1731068139548,-3523.16,0.00042717,30]
[341658422,1731068139573,-150.0,0.00042731,30]
[341658423,1731068139596,-500.0,0.00042738,60]
[341658424,1731068139620,-1243.97777533,0.0004274,60]
[341658425,1731068139643,-1000.0,0.0004274,60]
[341658426,1731068139668,-1000.0,0.0004274,60]
[341658427,1731068139693,-1000.0,0.0004274,60]
[341658428,1731068139717,-1000.0,0.0004274,60]
[341658429,1731068139744,-1000.0,0.0004274,60]
[341658430,1731068139768,-296.94467808,0.00042746,30]
[341658431,1731068139791,-150.0,0.00042759,30]
[341658432,1731068139815,-150.0,0.00042763,30]
[341658433,1731068139839,-1000.0,0.00042773,120]
[341658434,1731068139866,-150.0,0.00042779,30]
[341658435,1731068139891,-296.94467808,0.00042792,30]
[341658436,1731068139918,-356.2442442,0.00042795,90]
[341658437,1731068139944,-2912.8112075,0.000428,120]
[341658438,1731068139968,-612.08675541,0.000428,120]
[341658439,1731068139992,-159.890726,0.000428,33]
[341658440,1731068140016,-150.0,0.00042828,30]
[341658441,1731068140040,-150.0,0.00042828,30]
[341658442,1731068140064,-150.0,0.00042828,30]
[341658443,1731068140089,-296.94467808,0.00042839,30]
[341658444,1731068140114,-151.02,0.0004285,30]
[341658445,1731068140139,-1004.38,0.0004286,64]
[341658446,1731068140163,-150.0,0.0004287,30]
[341658447,1731068140189,-150.0,0.00042876,30]
[341658448,1731068140214,-1000.0,0.00042885,120]
[341658449,1731068140238,-296.94467808,0.00042886,30]
[341658450,1731068140263,-150.0,0.00042892,30]
[341658451,1731068140287,-150.0,0.00042924,30]
[341658452,1731068140315,-296.94467808,0.00042933,30]
[341658453,1731068140347,-150.0,0.00042956,30]
[341658454,1731068140370,-150.0,0.00042972,30]
[341658455,1731068140394,-296.94467808,0.00042979,30]
[341658456,1731068140418,-3523.16,0.0004299,30]
[341658457,1731068140442,-3523.16,0.0004299,30]
[341658458,1731068140465,-150.0,0.00042993,30]
[341658459,1731068140489,-150.0,0.00042993,30]
[341658460,1731068140515,-150.0,0.00042994,120]
[341658461,1731068140540,-1000.0,0.00042997,120]
[341658462,1731068140564,-15257.91673436,0.00042997,120]
[341658463,1731068140587,-547.64448083,0.00042997,120]
[341658464,1731068140613,-50000.0,0.00043,43]
[341658465,1731068140637,-155495.33805191,0.00043,30]
[341658466,1731068140659,-205.11547679,0.00043,110]
[341658467,1731068140683,-6363.70861807,0.00043,30]
[341658468,1731068140708,-3103.49545635,0.00043,120]
[341658469,1731068140731,-2596.59,0.00043,30]
[341658470,1731068140754,-1837.44761551,0.00043,120]
[341658471,1731068140777,-1827.0,0.00043,30]
[341658472,1731068140800,-6000.0,0.00043,120]
[341658473,1731068140823,-187.12,0.00043014,120]
[341658474,1731068140846,-150.0,0.0004302,30]
[341658475,1731068140871,-150.0,0.0004302,30]
[341658476,1731068140894,-296.94467808,0.00043026,30]
[341658477,1731068140918,-150.0,0.00043032,30]
[341658478,1731068140944,-150.0,0.00043042,30]
[341658479,1731068140969,-150.0,0.00043069,30]
[341658480,1731068140994,-296.94467808,0.00043073,30]
[341658481,1731068141018,-150.0,0.00043085,30]
[341658482,1731068141042,-1000.0,0.00043109,120]
[341658483,1731068141066,-150.0,0.00043117,30]
[341658484,1731068141090,-296.94467808,0.0004312,30]
[341658485,1731068141114,-150.0,0.00043149,30]
[341658486,1731068141139,-150.0,0.00043165,30]
[341658487,1731068141165,-296.94467808,0.00043167,30]
[341658488,1731068141190,-296.94467808,0.00043213,30]
[341658489,1731068141215,-150.0,0.00043213,30]
[341658490,1731068141240,-150.0,0.00043213,30]
[341658491,1731068141263,-150.0,0.00043213,30]
[341658492,1731068141288,-1000.0,0.00043221,120]
[341658493,1731068141313,-150.0,0.00043258,120]
[341658494,1731068141339,-296.94467808,0.0004326,30]
[341658495,1731068141363,-150.0,0.00043262,30]
[341658496,1731068141552,-3523.16,0.00043264,30]
[341658497,1731068141580,-3523.16,0.00043264,30]
[341658498,1731068141607,-150.0,0.00043278,30]
[341658499,1731068141633,-500.0,0.00043286,60]
[341658500,1731068141659,-500.0,0.00043286,60]
[341658501,1731068141684,-1000.0,0.000433,30]
[341658502,1731068141711,-1000.0,0.000433,30]
[341658503,1731068141739,-150.0,0.00043304,30]
[341658504,1731068141766,-296.94467808,0.00043307,30]
[341658505,1731068141791,-150.0,0.0004331,30]
[341658506,1731068141816,-150.0,0.00043324,30]
[341658507,1731068141841,-1000.0,0.00043332,120]
[341658508,1731068141871,-150.0,0.00043342,30]
[341658509,1731068141897,-296.94467808,0.00043354,30]
[341658510,1731068141924,-150.0,0.00043358,30]
[341658511,1731068141949,-150.0,0.00043385,30]
[341658512,1731068141974,-296.94467808,0.000434,30]
[341658513,1731068141998,-150.0,0.00043406,30]
[341658514,1731068142024,-150.0,0.00043406,30]
[341658515,1731068142049,-1000.0,0.00043444,120]
[341658516,1731068142073,-296.94467808,0.00043447,30]
[341658517,1731068142098,-150.0,0.00043454,30]
[341658518,1731068142123,-150.0,0.00043471,30]
[341658519,1731068142148,-296.94467808,0.00043494,30]
[341658520,1731068142174,-6000.0,0.000435,120]
[341658521,1731068142199,-4000.0,0.000435,32]
[341658522,1731068142225,-150.0,0.00043503,30]
[341658523,1731068142251,-150.0,0.00043535,30]
[341658524,1731068142276,-3523.16,0.00043537,30]
[341658525,1731068142300,-3523.16,0.00043537,30]
[341658526,1731068142326,-296.94467808,0.00043541,30]
[341658527,1731068142350,-150.0,0.00043551,30]
[341658528,1731068142375,-1000.0,0.00043556,120]
[341658529,1731068142400,-150.0,0.00043556,30]
[341658530,1731068142424,-150.0,0.00043576,30]
[341658531,1731068142449,-296.94467808,0.00043587,30]
[341658532,1731068142474,-150.0,0.00043599,30]
[341658533,1731068142499,-150.0,0.00043599,30]
[341658534,1731068142523,-1000.0,0.000436,30]
[341658535,1731068142548,-1000.0,0.000436,30]
[341658536,1731068142573,-150.0,0.000436,120]
[341658537,1731068142597,-150.0,0.000436,120]
[341658538,1731068142623,-296.94467808,0.00043634,30]
[341658539,1731068142647,-2000.0,0.0004364,120]
[341658540,1731068142673,-150.0,0.00043644,120]
[341658541,1731068142699,-150.0,0.00043647,30]
[341658542,1731068142727,-150.0,0.00043654,30]
[341658543,1731068142751,-150.0,0.00043654,30]
[341658544,1731068142775,-150.0,0.00043663,30]
[341658545,1731068142799,-1000.0,0.00043668,120]
[341658546,1731068142824,-296.94467808,0.00043681,30]
[341658547,1731068142849,-150.0,0.00043696,30]
[341658548,1731068142876,-150.0,0.00043696,120]
[341658549,1731068142902,-296.94467808,0.00043728,30]
[341658550,1731068142927,-150.0,0.00043728,30]
[341658551,1731068142951,-150.0,0.00043728,30]
[341658552,1731068142974,-150.0,0.00043744,30]
[341658553,1731068143002,-296.94467808,0.00043775,30]
[341658554,1731068143026,-1000.0,0.0004378,120]
[341658555,1731068143050,-209.0,0.0004379,30]
[341658556,1731068143074,-150.0,0.00043792,120]
[341658557,1731068143097,-150.0,0.00043792,30]
[341658558,1731068143121,-150.0,0.00043792,30]
[341658559,1731068143145,-416.92353606,0.000438,120]
[341658560,1731068143168,-3523.16,0.0004381,30]
[341658561,1731068143193,-3523.16,0.0004381,30]
[341658562,1731068143219,-296.94467808,0.00043821,30]
[341658563,1731068143244,-500.0,0.00043834,120]
[341658564,1731068143268,-5000.0,0.00043835,120]
[341658565,1731068143292,-3263.49,0.00043835,120]
[341658566,1731068143316,-3263.49,0.00043835,120]
[341658567,1731068143339,-3263.49,0.00043835,120]
[341658568,1731068143363,-3263.49,0.00043835,120]
[341658569,1731068143388,-3263.49,0.00043835,120]
[341658570,1731068143412,-3263.49,0.00043835,120]
[341658571,1731068143436,-3263.49,0.00043835,120]
[341658572,1731068143461,-3263.49,0.00043835,120]
[341658573,1731068143485,-3263.49,0.00043835,120]
[341658574,1731068143509,-3263.49,0.00043835,120]
[341658575,1731068143533,-3263.49,0.00043835,120]
[341658576,1731068143557,-3263.49,0.00043835,120]
[341658577,1731068143581,-3263.49,0.00043835,120]
[341658578,1731068143606,-3263.49,0.00043835,120]
[341658579,1731068143629,-3263.49,0.00043835,120]
[341658580,1731068143653,-3263.49,0.00043835,120]
[341658581,1731068143677,-3263.49,0.00043835,120]
[341658582,1731068143701,-3263.49,0.00043835,120]
[341658583,1731068143726,-3263.49,0.00043835,120]
[341658584,1731068143750,-3263.49,0.00043835,120]
[341658585,1731068143773,-3263.49,0.00043835,120]
[341658586,1731068143797,-3263.49,0.00043835,120]
[341658587,1731068143822,-3263.49,0.00043835,120]
[341658588,1731068143845,-3263.64887741,0.00043835,120]
[341658589,1731068143870,-11472.47267546,0.00043835,120]
[341658590,1731068144058,-2000.0,0.00043835,120]
[341658591,1731068144085,-4000.0,0.00043836,30]
[341658592,1731068144110,-557.24047472,0.0004384,120]
[341658593,1731068144134,-557.24047472,0.0004384,120]
[341658594,1731068144160,-557.24047472,0.0004384,120]
[341658595,1731068144185,-557.24047472,0.0004384,120]
[341658596,1731068144212,-557.24047472,0.0004384,120]
[341658597,1731068144237,-557.24047472,0.0004384,120]
[341658598,1731068144262,-557.24047472,0.0004384,120]
[341658599,1731068144287,-557.24047472,0.0004384,120]
[341658600,1731068144313,-557.24047472,0.0004384,120]
[341658601,1731068144338,-557.24047472,0.0004384,120]
[341658602,1731068144364,-557.24047472,0.0004384,120]
[341658603,1731068144390,-557.24047472,0.0004384,120]
[341658604,1731068144416,-557.24047472,0.0004384,120]
[341658605,1731068144441,-557.24047472,0.0004384,120]
[341658606,1731068144468,-557.24047472,0.0004384,120]
[341658607,1731068144494,-557.24047472,0.0004384,120]
[341658608,1731068144521,-557.24047472,0.0004384,120]
[341658609,1731068144548,-557.24047472,0.0004384,120]
[341658610,1731068144575,-557.24047472,0.0004384,120]
[341658611,1731068144602,-557.24,0.0004384,120]
[341658612,1731068144629,-4941.43325884,0.0004384,120]
[341658613,1731068144656,-4941.43325884,0.0004384,120]
[341658614,1731068144681,-4941.43325884,0.0004384,120]
[341658615,1731068144705,-4941.43325884,0.0004384,120]
[341658616,1731068144730,-4941.43325884,0.0004384,120]
[341658617,1731068144754,-4941.43325884,0.0004384,120]
[341658618,1731068144779,-4941.43325884,0.0004384,120]
[341658619,1731068144803,-4941.43325884,0.0004384,120]
[341658620,1731068144827,-4941.43325884,0.0004384,120]
[341658621,1731068144852,-4941.43325884,0.0004384,120]
[341658622,1731068144878,-4941.43325884,0.0004384,120]
[341658623,1731068144902,-4941.43325884,0.0004384,120]
[341658624,1731068144927,-4941.43325884,0.0004384,120]
[341658625,1731068144952,-4941.43325884,0.0004384,120]
[341658626,1731068144976,-4941.43325884,0.0004384,120]
[341658627,1731068145000,-4941.43325884,0.0004384,120]
[341658628,1731068145026,-4941.43325884,0.0004384,120]
[341658629,1731068145050,-4941.43325884,0.0004384,120]
[341658630,1731068145075,-4941.43325884,0.0004384,120]
[341658631,1731068145100,-4941.43,0.0004384,120]
[341658632,1731068145125,-5080.09764243,0.0004384,120]
[341658633,1731068145150,-5080.09764243,0.0004384,120]
[341658634,1731068145175,-5080.09764243,0.0004384,120]
[341658635,1731068145201,-5080.09764243,0.0004384,120]
[341658636,1731068145230,-5080.09764243,0.0004384,120]
[341658637,1731068145257,-5080.09764243,0.0004384,120]
[341658638,1731068145283,-5080.09764243,0.0004384,120]
[341658639,1731068145308,-5080.09764243,0.0004384,120]
[341658640,1731068145335,-5080.09764243,0.0004384,120]
[341658641,1731068145360,-5080.09764243,0.0004384,120]
[341658642,1731068145387,-5080.09764243,0.0004384,120]
[341658643,1731068145412,-5080.09764243,0.0004384,120]
[341658644,1731068145438,-5080.09764243,0.0004384,120]
[341658645,1731068145464,-5080.09764243,0.0004384,120]
[341658646,1731068145491,-5080.09764243,0.0004384,120]
[341658647,1731068145516,-5080.09764243,0.0004384,120]
[341658648,1731068145541,-5080.09764243,0.0004384,120]
[341658649,1731068145566,-5080.09764243,0.0004384,120]
[341658650,1731068145592,-5080.09764243,0.0004384,120]
[341658651,1731068145616,-5080.09,0.0004384,120]
[341658652,1731068145641,-150.0,0.0004384,30]
[341658653,1731068145665,-150.0,0.00043849,30]
[341658654,1731068145691,-150.0,0.00043856,30]
[341658655,1731068145717,-296.94467808,0.00043868,30]
[341658656,1731068145746,-150.0,0.00043889,30]
[341658657,1731068145771,-1000.0,0.00043892,120]
[341658658,1731068145797,-150.0,0.00043899,30]
[341658659,1731068145822,-1000.0,0.000439,30]
[341658660,1731068145847,-1000.0,0.000439,30]
[341658661,1731068145873,-296.94467808,0.00043915,30]
[341658662,1731068145899,-150.0,0.00043921,30]
[341658663,1731068145927,-150.0,0.00043936,120]
[341658664,1731068145955,-150.0,0.00043937,30]
[341658665,1731068145981,-296.94467808,0.00043962,30]
[341658666,1731068146006,-150.0,0.00043985,30]
[341658667,1731068146031,-150.0,0.00043985,30]
[341658668,1731068146058,-150.0,0.00043985,30]
[341658669,1731068146085,-150.0,0.00043985,30]
[341658670,1731068146112,-150.0,0.00043985,30]
[341658671,1731068146138,-150.0,0.00043985,30]
[341658672,1731068146167,-50000.0,0.00044,44]
[341658673,1731068146193,-6000.0,0.00044,120]
[341658674,1731068146219,-250.0,0.00044,30]
[341658675,1731068146244,-505.565526,0.00044,57]
[341658676,1731068146268,-1000.0,0.00044003,120]
[341658677,1731068146293,-296.94467808,0.00044008,30]
[341658678,1731068146319,-1004.38,0.00044015,73]
[341658679,1731068146345,-150.0,0.00044033,30]
[341658680,1731068146538,-150.0,0.00044049,30]
[341658681,1731068146566,-296.94467808,0.00044055,30]
[341658682,1731068146592,-150.0,0.00044071,30]
[341658683,1731068146619,-500.0,0.0004408,120]
[341658684,1731068146646,-500.0,0.0004408,120]
[341658685,1731068146671,-500.0,0.0004408,120]
[341658686,1731068146697,-586.0,0.0004408,120]
[341658687,1731068146724,-150.0,0.00044081,30]
[341658688,1731068146751,-296.94467808,0.00044102,30]
[341658689,1731068146777,-150.0,0.00044114,30]
[341658690,1731068146802,-1000.0,0.00044115,120]
[341658691,1731068146826,-150.0,0.00044121,30]
[341658692,1731068146850,-150.0,0.0004413,30]
[341658693,1731068146877,-296.94467808,0.00044149,30]
[341658694,1731068146901,-4417.6,0.00044169,117]
[341658695,1731068146926,-150.0,0.00044178,30]
[341658696,1731068146953,-150.0,0.00044178,30]
[341658697,1731068146977,-296.94467808,0.00044195,30]
[341658698,1731068147000,-1000.0,0.000442,30]
[341658699,1731068147024,-1000.0,0.000442,30]
[341658700,1731068147048,-150.0,0.00044226,30]
[341658701,1731068147072,-1000.0,0.00044227,120]
[341658702,1731068147097,-296.94467808,0.00044242,30]
[341658703,1731068147122,-150.0,0.00044242,30]
[341658704,1731068147147,-150.0,0.00044242,30]
[341658705,1731068147173,-1016.0,0.00044246,30]
[341658706,1731068147198,-150.0,0.00044274,30]
[341658707,1731068147223,-296.94467808,0.00044289,30]
[341658708,1731068147248,-150.0,0.00044307,30]
[341658709,1731068147273,-150.0,0.00044316,30]
[341658710,1731068147297,-150.0,0.00044316,30]
[341658711,1731068147323,-150.0,0.00044323,30]
[341658712,1731068147349,-296.94467808,0.00044336,30]
[341658713,1731068147374,-1000.0,0.00044339,120]
[341658714,1731068147399,-150.0,0.00044371,30]
[341658715,1731068147424,-150.0,0.00044371,30]
[341658716,1731068147449,-500.0,0.00044382,120]
[341658717,1731068147475,-290.52456579,0.00044382,120]
[341658718,1731068147500,-500.0,0.00044382,120]
[341658719,1731068147525,-296.94467808,0.00044383,30]
[341658720,1731068147550,-2000.0,0.00044383,120]
[341658721,1731068147577,-150.0,0.00044394,30]
[341658722,1731068147603,-150.0,0.00044414,30]
[341658723,1731068147627,-150.0,0.00044419,30]
[341658724,1731068147652,-296.94467808,0.00044429,30]
[341658725,1731068147677,-150.0,0.00044435,30]
[341658726,1731068147702,-1000.0,0.00044451,120]
[341658727,1731068147727,-150.0,0.00044467,30]
[341658728,1731068147752,-296.94467808,0.00044476,30]
[341658729,1731068147777,-15257.91673436,0.00044497,120]
[341658730,1731068147801,-150.0,0.00044499,30]
[341658731,1731068147825,-1000.0,0.000445,30]
[341658732,1731068147850,-6000.0,0.000445,120]
[341658733,1731068147880,-211.85,0.00044507,120]
[341658734,1731068147905,-150.0,0.00044516,30]
[341658735,1731068147931,-296.94467808,0.00044523,30]
[341658736,1731068147956,-1000.0,0.00044562,120]
[341658737,1731068147981,-150.0,0.00044564,30]
[341658738,1731068148006,-150.0,0.00044564,30]
[341658739,1731068148032,-296.94467808,0.0004457,30]
[341658740,1731068148058,-432.81,0.0004458,30]
[341658741,1731068148083,-432.81,0.0004458,30]
[341658742,1731068148109,-432.81,0.0004458,30]
[341658743,1731068148135,-432.81,0.0004458,30]
[341658744,1731068148160,-432.81,0.0004458,30]
[341658745,1731068148185,-432.81,0.0004458,30]
[341658746,1731068148212,-176.88,0.0004458,30]
[341658747,1731068148238,-150.0,0.00044585,30]
[341658748,1731068148264,-237.43782263,0.00044603,120]
[341658749,1731068148291,-150.0,0.00044612,30]
[341658750,1731068148318,-296.94467808,0.00044616,30]
[341658751,1731068148344,-150.0,0.00044628,30]
[341658752,1731068148369,-150.0,0.00044646,30]
[341658753,1731068148394,-2093.666268,0.00044656,120]
[341658754,1731068148420,-150.0,0.0004466,30]
[341658755,1731068148447,-296.94467808,0.00044663,30]
[341658756,1731068148472,-150.0,0.00044666,30]
[341658757,1731068148498,-1000.0,0.00044674,120]
[341658758,1731068148523,-150.0,0.00044692,30]
[341658759,1731068148548,-150.0,0.00044708,30]
[341658760,1731068148574,-296.94467808,0.0004471,30]
[341658761,1731068148599,-296.94467808,0.00044757,30]
[341658762,1731068148624,-150.0,0.00044757,30]
[341658763,1731068148648,-150.0,0.00044757,30]
[341658764,1731068148673,-150.0,0.00044757,30]
[341658765,1731068148701,-1000.0,0.00044786,120]
[341658766,1731068148729,-1000.0,0.000448,30]
[341658767,1731068148923,-296.94467808,0.00044803,30]
[341658768,1731068148952,-150.0,0.00044805,30]
[341658769,1731068148980,-150.0,0.00044821,30]
[341658770,1731068149007,-296.94467808,0.0004485,30]
[341658771,1731068149032,-150.0,0.00044853,30]
[341658772,1731068149058,-150.0,0.00044885,30]
[341658773,1731068149084,-296.94467808,0.00044897,30]
[341658774,1731068149110,-1000.0,0.00044898,120]
[341658775,1731068149137,-150.0,0.00044901,30]
[341658776,1731068149165,-150.0,0.00044928,30]
[341658777,1731068149191,-500.0,0.0004493,120]
[341658778,1731068149219,-500.0,0.0004493,120]
[341658779,1731068149245,-2000.0,0.00044931,120]
[341658780,1731068149272,-150.0,0.00044938,30]
[341658781,1731068149298,-150.0,0.00044941,120]
[341658782,1731068149324,-296.94467808,0.00044944,30]
[341658783,1731068149351,-150.0,0.0004495,30]
[341658784,1731068149378,-150.0,0.0004495,30]
[341658785,1731068149404,-151.042,0.0004496,120]
[341658786,1731068149430,-150.0,0.00044977,30]
[341658787,1731068149455,-150.0,0.00044977,30]
[341658788,1731068149481,-296.94467808,0.00044991,30]
[341658789,1731068149506,-150.0,0.00044998,30]
[341658790,1731068149534,-50000.0,0.00045,45]
[341658791,1731068149559,-500.0,0.00045,120]
[341658792,1731068149583,-1000.0,0.00045,120]
[341658793,1731068149609,-2005.0,0.00045,120]
[341658794,1731068149633,-863.0,0.00045,120]
[341658795,1731068149659,-1854.0,0.00045,120]
[341658796,1731068149684,-8433.6,0.00045,117]
[341658797,1731068149710,-6000.0,0.00045,120]
[341658798,1731068149735,-9467.25600751,0.00045,50]
[341658799,1731068149761,-2117.0,0.00045,120]
[341658800,1731068149787,-88088.45254511,0.00045,30]
[341658801,1731068149811,-150.0,0.00045,120]
[341658802,1731068149836,-150.0,0.00045,120]
[341658803,1731068149863,-150.0,0.00045,120]
[341658804,1731068149890,-176.339637,0.00045,120]
[341658805,1731068149916,-1000.0,0.0004501,120]
[341658806,1731068149943,-150.0,0.00045014,30]
[341658807,1731068149969,-296.94467808,0.00045037,30]
[341658808,1731068149995,-209.0,0.0004504,30]
[341658809,1731068150020,-150.0,0.00045046,30]
[341658810,1731068150045,-150.0,0.00045078,30]
[341658811,1731068150070,-296.94467808,0.00045084,30]
[341658812,1731068150095,-933.42221621,0.00045093,40]
[341658813,1731068150120,-511.93128081,0.00045093,40]
[341658814,1731068150144,-382.08469526,0.00045093,40]
[341658815,1731068150170,-150.0,0.00045094,30]
[341658816,1731068150195,-150.0,0.000451,30]
[341658817,1731068150220,-1000.0,0.000451,30]
[341658818,1731068150244,-1000.0,0.00045122,120]
[341658819,1731068150269,-296.94467808,0.00045131,30]
[341658820,1731068150295,-150.0,0.00045143,30]
[341658821,1731068150319,-150.0,0.00045143,30]
[341658822,1731068150343,-150.0,0.00045143,30]
[341658823,1731068150366,-1004.38,0.0004517,82]
[341658824,1731068150391,-296.94467808,0.00045178,30]
[341658825,1731068150415,-150.0,0.00045191,30]
[341658826,1731068150438,-1581.4299378,0.00045205,120]
[341658827,1731068150465,-150.0,0.00045207,30]
[341658828,1731068150490,-150.0,0.00045211,30]